bitfinex-derivatives/quotes_BTCF0:USTF0_20210703
["timestamp","ask_amount","ask_price","bid_price","bid_amount"]
[1625298887078,0.175,34459.0,34449.0,0.83267088]
[1625298887179,0.175,34459.0,34458.0,0.48115088]
[1625298888581,0.116,34459.0,34458.0,0.48115088]
[1625298888781,0.116,34459.0,34458.0,0.54015088]
[1625298889183,0.116,34459.0,34458.0,0.78072632]
[1625298890233,0.116,34459.0,34458.0,0.72172632]
[1625298891084,0.116,34459.0,34458.0,0.78072632]
[1625298891188,0.9176,34465.0,34458.0,0.78072632]
[1625298891335,0.9176,34465.0,34458.0,0.83972632]
[1625298891434,0.057,34466.0,34458.0,0.83972632]
[1625298891884,0.057,34466.0,34464.0,4.3703]
[1625298891985,0.057,34466.0,34464.0,4.4293]
[1625298892539,0.057,34466.0,34464.0,0.059]
[1625298892638,0.3237,34466.0,34458.0,0.72172632]
[1625298892939,0.4417,34466.0,34458.0,0.72172632]
[1625298893242,0.24057544,34459.0,34458.0,0.72172632]
[1625298893340,0.55314544,34459.0,34458.0,0.72172632]
[1625298893991,0.55314544,34459.0,34458.0,0.78072632]
[1625298894492,0.55314544,34459.0,34458.0,0.72172632]
[1625298896146,0.61214544,34459.0,34458.0,0.72172632]
[1625298896246,0.55314544,34459.0,34458.0,0.72172632]
[1625298896648,0.61214544,34459.0,34458.0,0.72172632]
[1625298896749,0.49614544,34459.0,34458.0,0.72172632]
[1625298897149,0.61414544,34459.0,34458.0,0.72172632]
[1625298897248,0.55514544,34459.0,34449.0,0.24057544]
[1625298897350,0.61414544,34459.0,34449.0,0.24057544]
[1625298897852,0.057,34458.0,34449.0,0.24057544]
[1625298897999,0.116,34458.0,34449.0,0.24057544]
[1625298898300,0.175,34458.0,34449.0,0.24057544]
[1625298899203,0.24057544,34450.0,34449.0,0.24057544]
[1625298899502,0.29757544,34450.0,34449.0,0.24057544]
[1625298900003,0.41557544,34450.0,34443.0,0.24057544]
[1625298900503,0.35657544,34450.0,34443.0,0.24057544]
[1625298901055,0.41557544,34450.0,34443.0,0.24057544]
[1625298901254,0.24057544,34444.0,34443.0,0.24057544]
[1625298901805,0.29757544,34444.0,34443.0,0.24057544]
[1625298902159,0.24057544,34444.0,34443.0,0.24057544]
[1625298903310,0.24057544,34444.0,34443.0,0.29957544]
[1625298903561,0.24057544,34444.0,34443.0,0.24057544]
[1625298904466,0.24057544,34445.0,34443.0,0.29957544]
[1625298904616,0.24057544,34445.0,34443.0,0.24057544]
[1625298905218,0.24057544,34450.0,34444.0,0.24057544]
[1625298905468,0.24057544,34450.0,34444.0,0.29957544]
[1625298905619,0.24057544,34450.0,34444.0,0.24057544]
[1625298905868,0.29957544,34450.0,34444.0,0.24057544]
[1625298906071,0.24057544,34450.0,34444.0,0.24057544]
[1625298906169,0.29957544,34450.0,34444.0,0.24057544]
[1625298906270,0.057,34449.0,34444.0,0.24057544]
[1625298906419,0.24057544,34450.0,34444.0,0.24057544]
[1625298906569,0.24057544,34450.0,34444.0,0.29957544]
[1625298906870,0.24057544,34450.0,34444.0,0.35857544]
[1625298907321,0.24057544,34450.0,34449.0,0.24057544]
[1625298907420,0.24057544,34450.0,34449.0,0.29957544]
[1625298907521,0.29757544,34455.0,34449.0,0.35857544]
[1625298907720,0.24057544,34455.0,34449.0,0.35857544]
[1625298909325,0.24057544,34455.0,34454.0,0.24057544]
[1625298909426,0.24057544,34455.0,34454.0,0.29957544]
[1625298910077,0.24057544,34455.0,34454.0,0.24057544]
[1625298910277,0.24057544,34455.0,34454.0,0.29957544]
[1625298910578,0.24057544,34455.0,34454.0,0.35857544]
[1625298911080,0.057,34457.0,34454.0,0.35857544]
[1625298911179,0.057,34457.0,34454.0,5.11737544]
[1625298911280,0.057,34457.0,34456.0,0.48115088]
[1625298911380,0.24057544,34462.0,34456.0,0.48115088]
[1625298911530,0.24057544,34462.0,34456.0,0.54015088]
[1625298911629,0.24057544,34462.0,34456.0,0.59915088]
[1625298913186,7.544e-05,34462.0,34456.0,0.59915088]
[1625298913286,0.24057544,34465.0,34464.0,0.48115088]
[1625298913386,0.24057544,34465.0,34464.0,0.74303088]
[1625298913588,0.24057544,34465.0,34464.0,0.80203088]
[1625298914139,0.29757544,34471.0,34464.0,0.80203088]
[1625298914342,0.057,34471.0,34464.0,0.80203088]
[1625298914490,0.24057544,34478.0,34464.0,0.86103088]
[1625298914890,0.20349519,34493.0,34464.0,0.86103088]
[1625298914991,0.9802,34481.0,34464.0,0.86103088]
[1625298915291,0.059,34481.0,34480.0,0.72172632]
[1625298916395,0.059,34481.0,34480.0,0.78072632]
[1625298917645,0.057,34486.0,34480.0,0.78072632]
[1625298918000,0.116,34486.0,34480.0,0.78072632]
[1625298919397,0.116,34486.0,34485.0,0.29957544]
[1625298919801,0.057,34486.0,34485.0,0.29957544]
[1625298920249,0.116,34486.0,34485.0,0.24057544]
[1625298920349,0.057,34486.0,34485.0,0.24057544]
[1625298920551,0.057,34496.0,34485.0,0.29957544]
[1625298920652,0.116,34496.0,34485.0,0.29957544]
[1625298921052,0.057,34496.0,34485.0,0.29957544]
[1625298921152,0.057,34496.0,34485.0,0.35857544]
[1625298921254,0.116,34496.0,34485.0,0.29957544]
[1625298921352,0.116,34496.0,34495.0,0.48115088]
[1625298921703,0.116,34496.0,34495.0,0.54015088]
[1625298922004,0.057,34496.0,34495.0,0.54015088]
[1625298922205,0.116,34496.0,34495.0,0.54015088]
[1625298922307,0.057,34496.0,34495.0,0.48115088]
[1625298922505,0.116,34496.0,34495.0,0.48115088]
[1625298922606,0.175,34496.0,34495.0,0.48115088]
[1625298922706,0.116,34496.0,34495.0,0.48115088]
[1625298922857,0.057,34496.0,34495.0,0.48115088]
[1625298922958,0.116,34496.0,34495.0,0.48115088]
[1625298923356,0.057,34496.0,34495.0,0.54015088]
[1625298923458,0.06196121,34504.0,34495.0,1.26555088]
[1625298923559,0.2929,34547.0,34495.0,0.98115088]
[1625298923708,0.9842,34536.0,34515.0,1.3476]
[1625298923812,0.20302293,34529.0,34515.0,1.6111]
[1625298924008,3.30382378,34536.0,34515.0,1.6111]
[1625298924158,0.059,34529.0,34515.0,1.6111]
[1625298924358,0.202522,34542.0,34515.0,1.6111]
[1625298924461,0.702522,34542.0,34515.0,1.6701]
[1625298924564,0.202522,34542.0,34531.0,1.3476]
[1625298924661,0.202522,34542.0,34538.0,0.2982]
[1625298924762,2.36247111,34553.0,34541.0,0.23005403]
[1625298924914,2.19168913,34553.0,34552.0,0.2982]
[1625298925113,2.19168913,34553.0,34552.0,0.7982]
[1625298925216,2.19168913,34553.0,34552.0,1.3172]
[1625298925412,1.19048913,34553.0,34552.0,2.27950176]
[1625298925514,1.15308913,34553.0,34552.0,7.44840176]
[1625298925613,0.15168913,34553.0,34552.0,7.90385579]
[1625298925716,0.2024395,34573.0,34552.0,7.90525979]
[1625298925814,0.2024395,34573.0,34570.0,2.79134623]
[1625298925965,0.2024395,34573.0,34570.0,3.96693026]
[1625298926063,0.2024395,34573.0,34570.0,3.57047623]
[1625298926214,0.2024395,34573.0,34570.0,3.79587623]
[1625298926312,0.2024395,34573.0,34570.0,3.57047623]
[1625298926412,0.2024395,34573.0,34570.0,3.07244323]
[1625298926615,0.24057544,34594.0,34570.0,3.07244323]
[1625298926712,0.24057544,34594.0,34571.0,0.5]
[1625298926814,2.69779204,34611.0,34570.0,3.07244323]
[1625298926916,0.118,34594.0,34570.0,3.07244323]
[1625298927014,0.118,34594.0,34570.0,1.628697]
[1625298927215,0.057,34593.0,34570.0,1.569697]
[1625298927419,0.24057544,34589.0,34588.0,0.24057544]
[1625298927516,0.24057544,34589.0,34585.0,0.20451]
[1625298927716,0.24057544,34589.0,34548.0,0.44791325]
[1625298927817,0.29957544,34589.0,34554.0,0.2398]
[1625298927917,0.29957544,34589.0,34554.0,0.059]
[1625298928018,0.057,34588.0,34554.0,0.059]
[1625298928116,0.116,34588.0,34548.0,0.46]
[1625298928220,4.9015,34588.0,34554.0,0.059]
[1625298928518,4.9015,34588.0,34548.0,0.46]
[1625298928618,4.9015,34588.0,34554.0,0.059]
[1625298928718,4.9035,34588.0,34554.0,0.059]
[1625298928973,4.8445,34588.0,34548.0,0.46]
[1625298929074,0.057,34587.0,34548.0,0.519]
[1625298929175,0.116,34587.0,34548.0,0.519]
[1625298929274,0.175,34587.0,34548.0,0.519]
[1625298929424,0.175,34587.0,34560.0,0.24057544]
[1625298929425,0.24057544,34562.0,34560.0,0.24057544]
[1625298929524,0.54278544,34562.0,34560.0,0.24057544]
[1625298929625,0.60178544,34562.0,34554.0,0.24057544]
[1625298929829,0.66078544,34562.0,34554.0,0.24057544]
[1625298930077,0.057,34561.0,34554.0,0.24057544]
[1625298930176,0.059,34561.0,34554.0,0.24057544]
[1625298930777,0.118,34561.0,34554.0,0.24057544]
[1625298931127,0.059,34561.0,34554.0,0.24057544]
[1625298931231,0.059,34561.0,34554.0,0.29957544]
[1625298931480,0.24057544,34584.0,34560.0,0.46501544]
[1625298931628,0.118,34561.0,34560.0,0.52401544]
[1625298931729,0.059,34561.0,34560.0,0.52401544]
[1625298931829,0.0545,34561.0,34560.0,0.52401544]
[1625298931980,0.24057544,34584.0,34560.0,0.52401544]
[1625298932180,0.47457544,34584.0,34560.0,0.52401544]
[1625298932281,0.41557544,34584.0,34560.0,0.52401544]
[1625298932379,0.35857544,34584.0,34560.0,0.52401544]
[1625298932681,0.24057544,34584.0,34560.0,0.52401544]
[1625298932829,0.24057544,34584.0,34560.0,0.46501544]
[1625298932830,0.35857544,34584.0,34560.0,0.46501544]
[1625298933080,0.057,34583.0,34560.0,0.52401544]
[1625298933179,0.29168,34583.0,34560.0,0.46501544]
[1625298933331,4.1232,34577.0,34560.0,0.24057544]
[1625298933430,0.48115088,34561.0,34560.0,0.24057544]
[1625298933579,0.76099088,34561.0,34560.0,0.24057544]
[1625298933830,0.70199088,34561.0,34560.0,0.24057544]
[1625298933930,0.76099088,34561.0,34560.0,0.24057544]
[1625298934180,0.81799088,34561.0,34550.0,0.24057544]
[1625298934280,0.87699088,34561.0,34550.0,0.24057544]
[1625298934833,0.81999088,34561.0,34550.0,0.24057544]
[1625298935283,0.59915088,34561.0,34550.0,0.24057544]
[1625298935384,0.059,34560.0,34550.0,0.24057544]
[1625298935483,0.059,34560.0,34559.0,0.24057544]
[1625298935634,0.118,34560.0,34559.0,0.24057544]
[1625298936186,0.059,34560.0,34559.0,0.24057544]
[1625298936386,0.116,34560.0,34559.0,0.24057544]
[1625298936486,0.057,34560.0,34559.0,0.24057544]
[1625298936587,0.059,34560.0,34559.0,0.24057544]
[1625298936887,0.118,34560.0,34559.0,0.24057544]
[1625298937040,0.059,34560.0,34559.0,0.53974544]
[1625298937287,0.057,34577.0,34559.0,0.53974544]
[1625298937387,0.116,34577.0,34559.0,0.53974544]
[1625298937488,0.24057544,34576.0,34575.0,0.24057544]
[1625298937591,0.29957544,34576.0,34575.0,0.44533544]
[1625298937737,0.35857544,34576.0,34575.0,0.44533544]
[1625298938237,0.41557544,34576.0,34575.0,0.20476]
[1625298938737,0.41557544,34576.0,34572.0,0.24057544]
[1625298938937,0.41557544,34576.0,34565.0,0.24057544]
[1625298939537,0.35857544,34566.0,34565.0,0.24057544]
[1625298939687,0.41557544,34566.0,34565.0,0.24057544]
[1625298939788,0.35857544,34566.0,34565.0,0.24057544]
[1625298940641,0.29957544,34566.0,34565.0,0.18157544]
[1625298940739,0.41557544,34566.0,34565.0,0.18157544]
[1625298940890,0.35657544,34566.0,34565.0,0.18157544]
[1625298940989,0.35657544,34566.0,34560.0,0.24057544]
[1625298941189,0.41557544,34566.0,34560.0,0.24057544]
[1625298941293,0.059,34566.0,34560.0,0.24057544]
[1625298941391,0.24057544,34576.0,34560.0,0.47651544]
[1625298941541,0.29957544,34576.0,34575.0,0.78078088]
[1625298941643,0.24057544,34576.0,34575.0,0.78078088]
[1625298941741,0.9176,34582.0,34575.0,0.78078088]
[1625298941941,0.9176,34582.0,34575.0,0.98538088]
[1625298942192,0.9176,34582.0,34575.0,0.92638088]
[1625298942292,0.9176,34582.0,34575.0,0.89878088]
[1625298942392,0.9176,34582.0,34575.0,0.83978088]
[1625298942496,0.9176,34582.0,34575.0,0.89878088]
[1625298942946,0.9176,34582.0,34575.0,0.83978088]
[1625298943147,0.9176,34582.0,34575.0,0.89878088]
[1625298943245,0.9176,34582.0,34575.0,0.83978088]
[1625298943344,0.9176,34582.0,34575.0,0.78078088]
[1625298943494,0.9766,34582.0,34581.0,0.48115088]
[1625298943744,0.9176,34582.0,34581.0,0.54015088]
[1625298944644,0.9176,34582.0,34581.0,0.48115088]
[1625298944995,0.9176,34582.0,34581.0,0.54015088]
[1625298945096,0.9176,34582.0,34581.0,0.81567088]
[1625298945496,0.9176,34582.0,34581.0,0.75667088]
[1625298946597,0.9176,34582.0,34581.0,0.81567088]
[1625298947052,0.9176,34582.0,34581.0,0.90367088]
[1625298947150,0.24057544,34599.0,34581.0,0.87467088]
[1625298947502,0.24057544,34599.0,34598.0,0.48115088]
[1625298947600,0.29957544,34599.0,34598.0,0.79415088]
[1625298949304,0.35857544,34599.0,34598.0,0.48115088]
[1625298949404,0.29957544,34599.0,34598.0,0.48115088]
[1625298951612,0.35857544,34599.0,34581.0,0.24057544]
[1625298951713,0.67418544,34599.0,34581.0,0.29957544]
[1625298952064,0.057,34598.0,34581.0,0.29957544]
[1625298952162,0.67418544,34599.0,34581.0,0.24057544]
[1625298952363,0.67418544,34599.0,34581.0,0.29957544]
[1625298952765,0.67618544,34599.0,34581.0,0.29957544]
[1625298952964,0.67618544,34599.0,34581.0,0.35857544]
[1625298953469,0.67618544,34599.0,34581.0,0.29957544]
[1625298953569,0.24057544,34582.0,34581.0,0.54015088]
[1625298953772,0.24057544,34582.0,34581.0,0.59915088]
[1625298953874,0.24057544,34582.0,34581.0,0.54015088]
[1625298954276,0.24057544,34592.0,34581.0,0.59915088]
[1625298954376,0.24057544,34592.0,34581.0,0.84642088]
[1625298954475,0.24057544,34592.0,34581.0,0.90542088]
[1625298955027,0.24057544,34592.0,34581.0,0.84642088]
[1625298955126,0.24057544,34592.0,34582.0,0.0875]
[1625298955227,0.24057544,34592.0,34582.0,0.118]
[1625298955576,0.24057544,34591.0,34586.0,0.24057544]
[1625298955677,0.24057544,34591.0,34586.0,0.29957544]
[1625298956076,0.24057544,34591.0,34586.0,0.35857544]
[1625298956178,0.24057544,34591.0,34586.0,0.29957544]
[1625298956327,0.24057544,34591.0,34586.0,0.35857544]
[1625298957579,0.24057544,34591.0,34590.0,0.24057544]
[1625298957732,0.24057544,34591.0,34590.0,0.29957544]
[1625298957831,0.24057544,34591.0,34590.0,0.35857544]
[1625298958180,0.24057544,34591.0,34590.0,0.29957544]
[1625298958382,0.24057544,34591.0,34590.0,0.35857544]
[1625298958482,0.24057544,34591.0,34590.0,0.60704544]
[1625298959987,0.24057544,34591.0,34590.0,1.95464544]
[1625298962792,0.24057544,34591.0,34590.0,3.6284457]
[1625298962992,0.24257544,34599.0,34590.0,3.6284457]
[1625298963243,0.002,34599.0,34590.0,3.6284457]
[1625298963445,0.002,34599.0,34590.0,0.81857544]
[1625298963554,0.057,34600.0,34590.0,0.059]
[1625298963693,0.69875088,34591.0,34586.0,0.24057544]
[1625298963794,0.69875088,34591.0,34590.0,0.118]
[1625298964192,0.2176,34591.0,34590.0,0.118]
[1625298964401,0.2018,34591.0,34590.0,1.03345403]
[1625298964543,0.1745,34591.0,34590.0,0.578]
[1625298964647,0.1745,34591.0,34590.0,0.519]
[1625298964793,0.28806,34623.0,34591.0,0.059]
[1625298964943,1.0479,34612.0,34591.0,0.118]
[1625298965045,0.118,34612.0,34591.0,0.059]
[1625298965144,0.118,34612.0,34591.0,0.118]
[1625298965397,0.28806,34623.0,34591.0,0.118]
[1625298965497,0.057,34612.0,34591.0,0.118]
[1625298965645,0.24057544,34609.0,34608.0,0.24057544]
[1625298965947,0.9007,34636.0,34608.0,0.35857544]
[1625298966047,0.9597,34636.0,34608.0,0.35857544]
[1625298966147,1.0187,34636.0,34608.0,0.35857544]
[1625298966298,0.5,34635.0,34608.0,0.35857544]
[1625298966399,0.059,34635.0,34608.0,0.35857544]
[1625298966502,0.36020429,34661.0,34609.0,0.2254]
[1625298966596,0.059,34635.0,34618.0,0.2982]
[1625298966707,0.057,34636.0,34618.0,0.49973]
[1625298966855,0.057,34636.0,34618.0,0.20153]
[1625298966946,0.057,34636.0,34618.0,0.26053]
[1625298967198,0.9444,34652.0,34618.0,0.26053]
[1625298967348,0.06202429,34661.0,34618.0,0.26053]
[1625298967452,0.12642547,34646.0,34618.0,0.26053]
[1625298967548,0.12642547,34646.0,34628.0,0.2982]
[1625298967651,0.24057544,34641.0,34640.0,0.24057544]
[1625298968048,0.24057544,34641.0,34637.0,0.24057544]
[1625298968150,0.29957544,34641.0,34637.0,0.24057544]
[1625298968802,0.057,34640.0,34637.0,0.24057544]
[1625298968951,0.057,34640.0,34637.0,0.29957544]
[1625298969051,0.116,34640.0,34633.0,0.24057544]
[1625298969155,0.42128,34640.0,34575.0,1.46459209]
[1625298969254,0.42128,34640.0,34616.0,0.118]
[1625298969354,0.42128,34640.0,34602.0,0.8427]
[1625298969456,0.92128,34640.0,34603.0,0.2982]
[1625298969604,0.24057544,34617.0,34616.0,0.24057544]
[1625298969805,0.58285544,34617.0,34616.0,0.24057544]
[1625298970256,0.58285544,34617.0,34612.0,0.24057544]
[1625298970354,0.64185544,34617.0,34616.0,0.00099779]
[1625298970462,0.64185544,34617.0,34616.0,0.00199558]
[1625298970556,0.70085544,34617.0,34616.0,0.00199558]
[1625298971055,0.70085544,34617.0,34616.0,0.00099779]
[1625298971156,0.70085544,34617.0,34606.0,0.24057544]
[1625298971456,0.64185544,34617.0,34606.0,0.29957544]
[1625298971556,0.70085544,34617.0,34606.0,0.29957544]
[1625298971707,0.057,34612.0,34606.0,0.29957544]
[1625298971808,0.24057544,34613.0,34606.0,0.29957544]
[1625298972107,0.29957544,34613.0,34606.0,0.29957544]
[1625298972209,0.059,34612.0,34606.0,0.35857544]
[1625298972309,0.24057544,34613.0,34606.0,0.29957544]
[1625298972510,0.24057544,34613.0,34606.0,0.24057544]
[1625298972658,0.35857544,34613.0,34606.0,0.24057544]
[1625298972963,0.057,34612.0,34606.0,0.24057544]
[1625298973212,0.39074,34612.0,34606.0,0.24057544]
[1625298973313,0.44974,34612.0,34606.0,0.24057544]
[1625298973660,0.24057544,34607.0,34606.0,0.24057544]
[1625298973911,0.29757544,34607.0,34606.0,0.24057544]
[1625298974014,0.29757544,34607.0,34603.0,0.2982]
[1625298974113,0.41557544,34607.0,34603.0,0.2982]
[1625298974361,0.35857544,34607.0,34603.0,0.2982]
[1625298974464,0.057,34606.0,34603.0,0.2982]
[1625298974613,0.24057544,34607.0,34603.0,0.66772]
[1625298975013,0.24057544,34609.0,34603.0,0.66772]
[1625298975664,0.24057544,34609.0,34608.0,0.48115088]
[1625298975867,0.24057544,34609.0,34608.0,0.54015088]
[1625298975966,0.24057544,34609.0,34608.0,0.48115088]
[1625298976067,0.24057544,34609.0,34608.0,0.54015088]
[1625298976165,0.24057544,34609.0,34608.0,0.24057544]
[1625298976268,0.24057544,34609.0,34603.0,0.2982]
[1625298976366,0.48109544,34609.0,34603.0,0.2982]
[1625298976467,0.057,34608.0,34603.0,0.2982]
[1625298976568,0.116,34608.0,34603.0,0.2982]
[1625298976669,0.175,34608.0,34603.0,0.2982]
[1625298976768,0.116,34608.0,34603.0,0.2982]
[1625298977373,0.175,34608.0,34603.0,0.2982]
[1625298977674,0.72172632,34604.0,34603.0,0.2982]
[1625298977773,0.89672632,34604.0,34603.0,0.2982]
[1625298977873,1.39672632,34604.0,34583.0,0.22057544]
[1625298978026,1.39672632,34604.0,34583.0,0.059]
[1625298978979,0.89672632,34604.0,34583.0,0.059]
[1625298979080,0.057,34602.0,34583.0,0.059]
[1625298979282,0.47772,34602.0,34574.0,0.44878862]
[1625298979383,0.5,34601.0,34574.0,0.44878862]
[1625298979482,0.057,34600.0,34574.0,0.44878862]
[1625298979582,0.116,34600.0,34574.0,0.44878862]
[1625298979684,0.48115088,34575.0,34573.0,0.24057544]
[1625298979884,0.48115088,34575.0,34573.0,0.29957544]
[1625298980033,0.24057544,34575.0,34573.0,0.29957544]
[1625298980132,0.24057544,34575.0,34573.0,0.35857544]
[1625298980284,0.24057544,34575.0,34573.0,0.29957544]
[1625298980383,0.24057544,34575.0,34573.0,0.35857544]
[1625298980635,0.057,34592.0,34573.0,0.35857544]
[1625298980733,0.057,34592.0,34573.0,0.29957544]
[1625298980833,0.116,34592.0,34573.0,0.29957544]
[1625298980932,0.175,34592.0,34573.0,0.24057544]
[1625298981035,0.175,34592.0,34570.0,0.24057544]
[1625298981184,0.5,34591.0,34570.0,0.29957544]
[1625298981287,0.057,34590.0,34570.0,0.29957544]
[1625298981387,0.116,34590.0,34570.0,0.29957544]
[1625298981484,0.616,34590.0,34570.0,0.24057544]
[1625298981736,0.76294088,34571.0,34570.0,0.24057544]
[1625298981935,0.76294088,34571.0,34568.0,0.2982]
[1625298982185,0.82194088,34571.0,34568.0,0.2982]
[1625298982436,0.82194088,34571.0,34560.0,0.45433455]
[1625298982539,0.82194088,34571.0,34560.0,0.059]
[1625298982888,0.5,34570.0,34558.0,0.15183537]
[1625298982987,0.057,34569.0,34554.0,0.45577846]
[1625298983087,0.057,34569.0,34554.0,0.57377846]
[1625298983190,0.175,34569.0,34554.0,0.51477846]
[1625298983287,0.175,34569.0,34554.0,0.45577846]
[1625298983388,0.175,34569.0,34554.0,0.57377846]
[1625298983490,0.175,34569.0,34554.0,0.118]
[1625298983491,0.116,34569.0,34554.0,0.118]
[1625298983589,0.175,34569.0,34552.0,0.45634096]
[1625298983690,0.48115088,34553.0,34552.0,0.6969164]
[1625298983790,0.48115088,34553.0,34552.0,0.81500757]
[1625298983895,0.53815088,34553.0,34552.0,0.51543213]
[1625298983991,0.53815088,34553.0,34552.0,0.45643213]
[1625298983992,0.59715088,34553.0,34552.0,0.45643213]
[1625298984095,0.59715088,34553.0,34551.0,0.60857618]
[1625298984195,0.59715088,34553.0,34549.0,0.45911343]
[1625298984344,0.65615088,34553.0,34549.0,0.45911343]
[1625298984494,0.59915088,34553.0,34549.0,0.45911343]
[1625298984594,0.24057544,34553.0,34546.0,1.6458]
[1625298984693,0.29957544,34553.0,34546.0,1.7048]
[1625298984792,0.24057544,34553.0,34546.0,1.7048]
[1625298985043,0.24057544,34553.0,34548.0,0.45957153]
[1625298985294,0.29957544,34553.0,34548.0,0.15319051]
[1625298985397,0.29957544,34553.0,34545.0,0.15334844]
[1625298985700,0.48115088,34546.0,34541.0,0.46060263]
[1625298985799,0.057,34545.0,34541.0,0.46060263]
[1625298986001,0.116,34545.0,34541.0,0.46060263]
[1625298986101,0.057,34545.0,34540.0,0.24057544]
[1625298986198,0.116,34545.0,34540.0,0.24057544]
[1625298986300,0.175,34545.0,34538.0,0.72090108]
[1625298986401,0.675,34545.0,34538.0,0.72090108]
[1625298986556,0.675,34545.0,34538.0,0.46095054]
[1625298986650,0.675,34545.0,34533.0,1.07563537]
[1625298987003,0.675,34545.0,34526.0,0.46219789]
[1625298987204,0.675,34545.0,34526.0,0.52119789]
[1625298987306,0.116,34545.0,34527.0,0.46154919]
[1625298987504,0.116,34545.0,34527.0,0.52054919]
[1625298987605,0.116,34545.0,34529.0,0.4614242]
[1625298987703,0.116,34545.0,34529.0,0.76099964]
[1625298987853,0.48115088,34530.0,34529.0,0.76099964]
[1625298987953,0.48115088,34530.0,34529.0,0.81999964]
[1625298988206,0.48115088,34530.0,34529.0,0.5204242]
[1625298988555,0.48115088,34530.0,34529.0,0.4614242]
[1625298988657,0.48115088,34530.0,34525.0,0.24057544]
[1625298988658,0.53815088,34530.0,34514.0,1.5370337]
[1625298988763,1.09715088,34530.0,34514.0,1.3210337]
[1625298988862,0.65615088,34530.0,34514.0,1.3210337]
[1625298989265,0.59915088,34530.0,34514.0,1.3210337]
[1625298989516,0.59915088,34530.0,34498.0,0.7582]
[1625298989517,0.65815088,34530.0,34498.0,0.7582]
[1625298989615,0.65815088,34530.0,34514.0,0.059]
[1625298989714,0.72172632,34515.0,34514.0,0.059]
[1625298990316,0.03556786,34515.0,34514.0,0.059]
[1625298990569,0.24057544,34530.0,34514.0,0.059]
[1625298990770,0.24057544,34530.0,34514.0,0.118]
[1625298991019,0.29957544,34530.0,34514.0,0.118]
[1625298991217,0.24057544,34530.0,34514.0,0.118]
[1625298991619,0.29957544,34530.0,34514.0,0.118]
[1625298991719,0.24057544,34523.0,34522.0,0.24057544]
[1625298991819,0.24057544,34523.0,34522.0,0.29957544]
[1625298992020,0.49642544,34523.0,34518.0,0.24057544]
[1625298992121,0.61442544,34523.0,34513.0,0.2982]
[1625298992219,0.67142544,34523.0,34513.0,0.2982]
[1625298992322,0.67142544,34523.0,34499.0,1.37560026]
[1625298992570,0.61442544,34523.0,34507.0,0.29957544]
[1625298992720,0.55542544,34523.0,34507.0,0.35857544]
[1625298992821,0.49642544,34523.0,34507.0,0.35857544]
[1625298992919,0.55542544,34523.0,34507.0,0.35857544]
[1625298993322,0.61442544,34523.0,34507.0,0.35857544]
[1625298993719,0.24057544,34515.0,34514.0,0.24057544]
[1625298994020,0.24057544,34515.0,34514.0,0.29957544]
[1625298994271,0.24057544,34515.0,34514.0,0.24057544]
[1625298994372,0.24057544,34515.0,34514.0,0.29957544]
[1625298994573,0.24057544,34515.0,34514.0,0.35857544]
[1625298994673,0.24057544,34523.0,34514.0,0.35857544]
[1625298994773,0.24057544,34523.0,34514.0,0.55329544]
[1625298994984,0.24057544,34523.0,34514.0,0.49429544]
[1625298995075,0.24057544,34523.0,34520.0,0.2982]
[1625298995175,0.24057544,34523.0,34520.0,0.3572]
[1625298995476,0.24057544,34523.0,34520.0,0.4162]
[1625298995783,0.24057544,34523.0,34522.0,0.48115088]
[1625298995879,0.24057544,34523.0,34522.0,0.54015088]
[1625298995979,0.24057544,34523.0,34522.0,0.59915088]
[1625298996331,0.24057544,34530.0,34522.0,0.59915088]
[1625298996332,0.24057544,34530.0,34522.0,0.90709088]
[1625298996532,0.9979,34546.0,34522.0,0.90709088]
[1625298996838,0.059,34546.0,34526.0,0.2254]
[1625298996986,0.148,34581.0,34532.0,0.46]
[1625298997085,0.9621,34580.0,34537.0,1.24798]
[1625298997236,1.0801,34580.0,34537.0,1.30698]
[1625298997636,0.057,34579.0,34537.0,1.30698]
[1625298997735,0.24057544,34545.0,34544.0,0.24057544]
[1625298997841,0.24057544,34545.0,34541.0,0.24057544]
[1625298997936,0.24057544,34545.0,34541.0,0.29957544]
[1625298998034,0.24057544,34545.0,34542.0,0.2982]
[1625298998236,0.24057544,34545.0,34542.0,0.3572]
[1625298998335,0.24057544,34545.0,34542.0,0.4162]
[1625298998635,0.24057544,34545.0,34542.0,0.3572]
[1625298998735,0.24057544,34545.0,34542.0,0.4162]
[1625298999136,0.24057544,34545.0,34542.0,0.3572]
[1625298999887,0.24057544,34543.0,34542.0,0.4162]
[1625299000840,6.61446272,44840.0,34542.0,0.3572]
[1625299000942,0.059,34562.0,34546.0,0.46]
[1625299001091,0.9621,34580.0,34552.0,2.57112026]
[1625299001242,1.0801,34580.0,34552.0,2.63012026]
[1625299001340,0.118,34580.0,34552.0,2.68912026]
[1625299001440,0.118,34580.0,34552.0,2.63012026]
[1625299001542,0.118,34580.0,34552.0,2.68912026]
[1625299001742,0.057,34579.0,34552.0,2.68912026]
[1625299001895,0.35657544,34572.0,34567.0,0.24057544]
[1625299001991,0.41557544,34572.0,34567.0,0.24057544]
[1625299002092,0.41557544,34572.0,34564.0,0.24057544]
[1625299002292,0.41557544,34572.0,34560.0,0.24057544]
[1625299003344,0.41557544,34572.0,34560.0,0.29957544]
[1625299003495,0.35657544,34572.0,34560.0,0.35857544]
[1625299003594,0.41557544,34572.0,34560.0,0.35857544]
[1625299003693,0.41557544,34572.0,34560.0,0.118]
[1625299003793,0.72172632,34561.0,34546.0,0.33]
[1625299003898,0.057,34560.0,34543.0,0.0762402]
[1625299004098,0.616,34560.0,34542.0,0.07638476]
[1625299004198,0.675,34560.0,34542.0,0.07638476]
[1625299004299,0.675,34560.0,34535.0,1.09754092]
[1625299004800,0.675,34560.0,34522.0,0.9829]
[1625299004947,0.24365,34535.0,34522.0,0.9829]
[1625299005050,0.057,34534.0,34522.0,0.9829]
[1625299005200,0.175,34534.0,34508.0,1.39542611]
[1625299005300,0.116,34534.0,34508.0,1.39542611]
[1625299005399,0.175,34534.0,34508.0,1.39542611]
[1625299005498,0.175,34534.0,34533.0,0.00100012]
[1625299005697,0.05799988,34531.0,34506.0,1.40009767]
[1625299005799,0.24057544,34517.0,34516.0,0.24057544]